bitfinex/quotes_ETHUSD_20220309
["timestamp","ask_amount","ask_price","bid_price","bid_amount"]
[1646784339774,1.14454147,2579.6,2578.7,6.16140311]
[1646784340171,0.00360579,2579.1,2578.7,5.265]
[1646784340371,0.00360579,2579.1,2578.7,0.765]
[1646784340873,0.00360579,2579.1,2578.7,0.3]
[1646784341077,0.96989,2579.5,2578.3,4.5]
[1646784341272,0.00360169,2579.0,2578.2,0.1938]
[1646784341474,0.98682466,2578.7,2578.2,0.1938]
[1646784341873,0.98682466,2578.7,2578.1,0.1938]
[1646784342073,0.98682466,2578.7,2578.0,1.1534898]
[1646784342480,0.00360205,2578.5,2578.0,1.4534898]
[1646784342680,0.96999,2579.6,2578.5,0.0027971]
[1646784343084,0.47084955,2579.6,2578.5,0.0027971]
[1646784343524,4.657,2580.1,2578.6,0.1938]
[1646784343729,0.17398592,2580.0,2578.6,0.1938]
[1646784343923,1.10171209,2579.4,2578.9,0.03920956]
[1646784344927,0.00172884,2579.3,2578.9,0.03920956]
[1646784345926,1.10171209,2579.4,2578.9,0.03920956]
[1646784346127,0.00172898,2579.2,2578.9,0.03920956]
[1646784346925,1.10171209,2579.4,2578.9,0.03920956]
[1646784347373,0.00392138,2579.2,2578.9,0.03920956]
[1646784348175,1.10171209,2579.4,2578.9,0.03920956]
[1646784348375,1.10171209,2579.4,2578.7,4.44289656]
[1646784348574,0.00392138,2579.2,2578.7,4.43866856]
[1646784348776,0.00392138,2579.2,2578.7,4.24486856]
[1646784349177,0.00392138,2579.2,2579.1,0.02304786]
[1646784349375,0.96983,2579.3,2579.1,0.02304786]
[1646784350679,1.26983,2579.3,2579.1,0.02304786]
[1646784350931,0.97350824,2579.3,2579.1,0.02304786]
[1646784351320,0.30367824,2579.3,2579.1,0.02304786]
[1646784351523,0.00367824,2579.3,2579.1,0.02304786]
[1646784351921,1.10171209,2579.4,2579.1,0.02304786]
[1646784352120,0.00360928,2579.3,2579.1,0.02304786]
[1646784353026,0.17474363,2579.9,2579.1,0.02304786]
[1646784353226,0.17474363,2579.8,2579.1,0.02304786]
[1646784353423,1.67489438,2580.2,2579.1,0.02304786]
[1646784353424,0.00385229,2579.3,2579.1,0.02304786]
[1646784354423,0.17474363,2579.5,2578.9,3.5]
[1646784354671,0.00385229,2579.3,2578.9,3.5]
[1646784355473,0.17474363,2579.5,2578.9,3.5]
[1646784355674,0.00361405,2579.2,2578.9,3.5]
[1646784356474,0.00361405,2579.2,2579.0,1.39568651]
[1646784356678,0.17474363,2579.3,2579.0,1.39568651]
[1646784356874,0.00361409,2579.2,2579.0,1.39568651]
[1646784357278,0.00361409,2579.2,2578.8,1.12263843]
[1646784357880,0.9618938,2579.8,2578.8,1.12263843]
[1646784358079,0.00361412,2579.1,2578.8,1.12263843]
[1646784358521,0.00361412,2579.1,2578.6,0.1938]
[1646784359120,1.06747915,2579.4,2578.6,0.1938]
[1646784359325,0.00360817,2579.0,2578.6,0.1938]
[1646784359523,1.19223855,2579.0,2578.6,0.1938]
[1646784360221,1.67511988,2579.6,2578.6,0.1938]
[1646784360423,1.97511988,2579.6,2578.6,0.1938]
[1646784360625,0.0036082,2578.9,2578.6,0.1938]
[1646784361422,1.23218123,2579.4,2578.8,1.04050919]
[1646784361622,1.13260123,2579.4,2578.8,1.04050919]
[1646784361828,0.00360824,2578.9,2578.8,1.02459919]
[1646784362371,1.08184947,2579.4,2578.6,0.1938]
[1646784363774,1.08184947,2579.4,2578.7,1.08867635]
[1646784363974,0.00172614,2579.1,2578.7,1.08867635]
[1646784364174,0.00172614,2579.1,2578.8,0.01864718]
[1646784364975,0.70517068,2579.4,2578.8,0.01864718]
[1646784365376,0.00172614,2579.1,2578.8,0.01864718]
[1646784366228,1.77146172,2579.4,2578.8,0.01864718]
[1646784366430,0.00392225,2579.1,2578.8,0.01864718]
[1646784366629,0.00392225,2579.1,2578.8,3.51864718]
[1646784367128,0.00392225,2579.1,2578.8,0.01864718]
[1646784367534,0.70517068,2579.3,2578.8,0.01864718]
[1646784367735,0.00392225,2579.1,2578.8,0.01864718]
[1646784367936,0.00392225,2579.1,2578.8,0.01446743]
[1646784368535,0.00392225,2579.1,2578.8,3.51446743]
[1646784368736,0.92001711,2579.5,2578.9,0.13819997]
[1646784368737,0.70517068,2579.5,2578.9,0.13819997]
[1646784368938,0.00392225,2579.1,2579.0,0.465]
[1646784369236,0.00392225,2579.1,2579.0,3.965]
[1646784369440,0.00392225,2579.1,2579.0,3.5]
[1646784369671,0.00392225,2579.1,2579.0,5.059]
[1646784369870,0.70517068,2579.8,2579.1,0.9694]
[1646784370069,0.70517068,2579.8,2579.5,0.9821358]
[1646784370271,0.93570026,2580.1,2579.5,0.9821358]
[1646784370272,0.70517068,2579.9,2579.5,0.9821358]
[1646784370469,0.70517068,2579.9,2579.5,1.5411358]
[1646784370870,0.70517068,2579.9,2579.6,3.5]
[1646784371270,0.00367717,2579.8,2579.7,0.559]
[1646784371672,0.00367717,2579.8,2579.7,4.059]
[1646784371872,0.70517068,2580.1,2579.8,2.0]
[1646784372079,0.01470646,2580.2,2579.9,20.50610266]
[1646784372275,0.97867277,2581.1,2580.1,12.238]
[1646784372276,0.92001711,2580.9,2580.1,12.238]
[1646784372477,0.92001711,2581.1,2580.2,4.059]
[1646784372677,0.92001711,2581.0,2580.3,0.559]
[1646784373275,1.83430724,2581.4,2580.3,0.559]
[1646784373276,1.203399,2580.8,2580.3,0.559]
[1646784373527,1.203399,2580.8,2579.9,0.559]
[1646784373528,2.12341611,2580.8,2579.9,0.559]
[1646784373728,0.92001711,2580.6,2579.9,0.559]
[1646784374325,2.55489982,2580.8,2579.9,0.559]
[1646784374326,0.96496381,2580.3,2579.9,0.559]
[1646784374528,0.92001711,2580.6,2579.9,0.559]
[1646784374731,0.92001711,2580.9,2580.0,5.15706]
[1646784374927,0.92001711,2581.1,2580.1,12.409]
[1646784375228,0.92001711,2581.1,2580.2,3.5]
[1646784375427,0.92001711,2581.1,2580.3,0.559]
[1646784375630,0.92001711,2581.2,2580.6,0.88602365]
[1646784375827,0.92001711,2581.2,2580.6,1.44502365]
[1646784376228,0.0039296,2580.8,2580.6,1.44502365]
[1646784377031,0.0039296,2580.8,2580.7,3.5]
[1646784377284,0.00171269,2580.8,2580.7,5.059]
[1646784378282,0.07922726,2581.1,2580.7,5.059]
[1646784378586,2.726e-05,2581.0,2580.9,13.20676]
[1646784378783,0.00684973,2581.3,2580.9,18.26576]
[1646784378984,0.00684973,2581.3,2581.0,0.13819997]
[1646784379182,0.00684973,2581.3,2581.1,0.947]
[1646784379382,4.973e-05,2581.3,2581.2,15.738]
[1646784379585,1.83430724,2582.5,2581.2,15.738]
[1646784379586,0.92001711,2582.4,2581.2,23.581]
[1646784379785,0.92001711,2582.4,2581.8,0.388]
[1646784379786,0.92097711,2582.4,2581.8,0.388]
[1646784379982,1.35150082,2582.6,2581.9,16.297]
[1646784379983,0.92001711,2582.5,2581.9,16.297]
[1646784380183,0.92001711,2582.5,2582.1,11.85]
[1646784380383,0.92001711,2582.5,2582.2,0.559]
[1646784380581,0.92001711,2582.5,2582.0,0.87790712]
[1646784380582,0.92001711,2582.5,2582.3,0.559]
[1646784380782,2.30001715,2582.7,2582.4,0.559]
[1646784380783,1.86853344,2582.7,2582.4,0.559]
[1646784381025,1.86853344,2582.7,2582.5,0.559]
[1646784381227,1.86853344,2582.7,2582.1,0.559]
[1646784381228,0.2988964,2582.4,2582.1,0.559]
[1646784382026,0.2988964,2582.4,2582.2,3.5]
[1646784382230,0.30060377,2582.4,2582.3,0.559]
[1646784382830,0.30060377,2582.4,2582.3,4.059]
[1646784383029,0.2988964,2582.4,2582.3,4.059]
[1646784383229,0.2988964,2582.4,2582.3,1.559]
[1646784383630,0.2988964,2582.4,2582.3,0.559]
[1646784386580,0.2988964,2582.4,2582.0,0.559]
[1646784387179,1.07375751,2582.3,2582.0,0.559]
[1646784387583,0.2988964,2582.4,2582.0,0.559]
[1646784387983,0.2988964,2582.4,2581.8,4.33770056]
[1646784388181,0.00393418,2582.3,2581.9,0.559]
[1646784389029,0.00393418,2582.3,2582.0,3.5]
[1646784389241,0.2988964,2582.4,2582.0,1.0]
[1646784389433,0.00393427,2582.2,2582.0,1.0]
[1646784389635,0.00393427,2582.2,2581.9,0.559]
[1646784390032,0.00393427,2582.2,2581.8,3.5]
[1646784390236,0.00393427,2582.2,2581.8,3.965]
[1646784390432,0.2988964,2582.4,2581.8,3.965]
[1646784390635,0.2988964,2582.4,2581.8,0.465]
[1646784390636,0.00393431,2582.2,2581.8,0.465]
[1646784390837,0.00393431,2582.2,2581.8,3.965]
[1646784391034,0.00393431,2582.2,2581.8,4.965]
[1646784391534,0.2988964,2582.4,2581.8,4.965]
[1646784391736,0.00393435,2582.1,2581.8,4.965]
[1646784392790,0.2988964,2582.4,2581.8,4.965]
[1646784392987,0.0039344,2582.1,2581.8,4.965]
[1646784393687,0.0039344,2582.1,2581.9,0.01938288]
[1646784393888,0.90156153,2582.2,2581.9,0.01938288]
[1646784393889,0.90156153,2582.2,2582.0,0.01988774]
[1646784394288,0.0039344,2582.1,2582.0,0.01988774]
[1646784395191,0.90156153,2582.2,2580.9,3.5]
[1646784395192,2.0,2582.0,2580.9,3.5]
[1646784395393,2.0,2582.0,2580.7,7.4808]
[1646784395789,0.3,2582.0,2580.7,5.1228]
[1646784396025,1.18398569,2581.1,2580.7,5.1228]
[1646784396225,1.18398569,2581.1,2580.7,3.5]
[1646784396423,1.18398569,2581.1,2580.5,1.57018489]
[1646784396623,0.00380505,2581.5,2580.6,11.85]
[1646784396825,0.00380505,2581.5,2580.7,3.5]
[1646784397025,0.00380505,2581.5,2580.7,3.95864792]
[1646784397229,0.00380505,2581.5,2580.7,4.95864792]
[1646784397728,1.13269401,2581.5,2580.7,4.95864792]
[1646784397931,0.00380496,2581.4,2580.7,4.95864792]
[1646784398130,0.00380496,2581.4,2580.7,1.465]
[1646784398131,0.928395,2581.1,2580.7,1.465]
[1646784398328,0.928395,2581.1,2580.7,0.465]
[1646784398728,0.928395,2581.1,2580.3,0.5]
[1646784398930,0.928395,2581.1,2580.3,0.965]
[1646784399228,0.928395,2581.1,2580.4,3.50361406]
[1646784399675,0.928395,2581.1,2580.5,0.8812628]
[1646784400873,0.928395,2581.1,2580.4,1.00361396]
[1646784401073,0.928395,2581.1,2580.4,1.465]
[1646784401279,0.928395,2581.1,2580.4,0.465]
[1646784401474,0.928395,2581.1,2580.4,0.46861399]
[1646784402282,0.928395,2581.1,2580.4,0.00361399]
[1646784402481,0.928395,2581.1,2580.3,0.5]
[1646784402482,1.228395,2581.1,2580.3,0.5]
[1646784402683,1.228395,2581.1,2580.4,0.00362255]
[1646784403634,1.228395,2581.1,2579.4,0.01559268]
[1646784403635,1.9389884,2580.9,2579.4,0.01559268]
[1646784403827,0.96957,2580.8,2580.4,0.00362255]
[1646784404026,1.26957,2580.8,2580.4,0.00362255]
[1646784404527,1.12855217,2580.7,2580.4,0.00362255]
[1646784404726,1.60065664,2580.7,2579.4,0.01559268]
[1646784404927,0.9695007,2580.6,2579.4,0.01559268]
[1646784405227,0.9695007,2580.6,2580.4,0.00362245]
[1646784406027,0.9695007,2580.6,2579.4,0.01559268]
[1646784406227,0.9696221,2580.3,2579.4,0.01559268]
[1646784406628,0.3,2580.2,2579.4,0.01559268]
[1646784406830,0.89287719,2579.7,2579.4,0.01559268]
[1646784407482,1.19287719,2579.7,2579.4,0.01559268]
[1646784407881,0.89287719,2579.7,2579.4,0.01559268]
[1646784408285,0.3,2580.2,2579.4,3.51559268]
[1646784408485,2.7571,2580.8,2579.4,4.51559268]
[1646784408486,3.47447206,2580.8,2579.4,4.51559268]
[1646784408681,2.7571,2580.8,2579.4,4.98421544]
[1646784409380,1.07895694,2580.2,2579.6,0.98754783]
[1646784409982,1.07895694,2580.2,2580.0,0.003625]
[1646784410939,1.07895694,2580.2,2579.4,3.51559268]
[1646784411126,1.07895694,2580.2,2580.0,0.003625]
[1646784411325,4.4694909,2580.7,2580.0,0.003625]
[1646784411527,0.3,2580.6,2580.0,0.003625]
[1646784412126,0.3,2580.6,2580.2,0.00362485]
[1646784412329,0.91149209,2580.5,2580.2,0.00362485]
[1646784412532,0.3,2580.6,2580.2,0.00362485]
[1646784412832,0.3,2580.8,2580.2,0.00362485]
[1646784413232,0.3,2580.8,2579.7,4.5]
[1646784413438,0.3,2580.8,2580.3,0.00362188]
[1646784414033,0.94153732,2580.5,2580.3,0.00362188]
[1646784414530,0.94153732,2580.5,2579.9,1.23102519]
[1646784414531,0.94153732,2580.5,2580.4,0.00362177]
[1646784415478,0.94153732,2580.5,2579.6,0.1937]
[1646784415479,1.24153732,2580.5,2579.6,0.1937]
[1646784415673,1.24153732,2580.5,2579.5,3.5]
[1646784415875,1.24153732,2580.5,2580.3,0.00362184]
[1646784416674,1.24153732,2580.5,2579.7,3.5]
[1646784416875,1.24153732,2580.5,2579.6,1.18763688]
[1646784417074,1.24153732,2580.5,2580.3,0.00362221]
[1646784418079,0.00138278,2580.3,2579.6,4.5]
[1646784418279,0.00138278,2580.3,2579.6,1.0]
[1646784418728,0.00138278,2580.3,2579.4,4.98059268]
[1646784419326,1.06343167,2580.1,2579.7,0.00362262]
[1646784420126,0.97099728,2580.3,2579.7,0.00362262]
[1646784420326,0.97099728,2580.3,2579.4,5.53700537]
[1646784420527,0.00138278,2580.3,2579.4,5.53700537]
[1646784420725,0.00138278,2580.3,2579.8,0.00362514]
[1646784421627,0.00138278,2580.3,2579.5,0.1937]
[1646784421825,0.00138278,2580.3,2579.9,1.03830614]
[1646784422678,0.8828683,2581.1,2579.9,1.03830614]
[1646784422878,0.3,2581.1,2580.0,3.5]
[1646784423079,1.99327404,2580.8,2580.0,0.00362499]
[1646784423280,2.29327404,2580.8,2580.0,0.00362499]
[1646784423883,2.29327404,2580.8,2579.9,1.03468111]
[1646784424280,2.29327404,2580.8,2580.3,0.00362188]
[1646784425078,2.29327404,2580.8,2579.9,1.03468111]
[1646784425279,1.01968392,2580.4,2579.9,1.03468111]
[1646784426429,1.01968392,2580.4,2579.7,4.5]
[1646784426624,1.01968392,2580.4,2580.0,0.00362207]
[1646784427531,1.01968392,2580.4,2579.6,0.1937]
[1646784427532,1.31968392,2580.4,2579.6,0.1937]
[1646784427736,1.31968392,2580.4,2580.1,0.00362493]
[1646784428733,1.31968392,2580.4,2579.4,1.17179598]
[1646784428936,1.00836106,2580.0,2579.4,0.01559268]
[1646784429135,1.30836106,2580.0,2579.4,0.01559268]
[1646784429973,0.17210447,2580.3,2579.4,0.01559268]
[1646784430173,0.969583,2580.4,2579.6,0.0036253]
[1646784430473,1.9391313,2580.8,2579.6,0.0036253]
[1646784431274,0.89488467,2580.5,2579.8,0.93276888]
[1646784431477,0.89488467,2580.5,2580.0,0.00362482]
[1646784431673,1.19488467,2580.5,2580.0,0.00362482]
[1646784432477,1.19488467,2580.5,2579.8,0.93276888]
[1646784432678,1.19488467,2580.5,2580.1,0.00362471]
[1646784433622,2.87950636,2580.8,2579.9,3.5]
[1646784433623,0.94037506,2580.8,2579.9,3.5]
[1646784433822,4.57295188,2581.1,2580.2,0.00362467]
[1646784433823,3.68947506,2581.1,2580.2,0.00362467]
[1646784434026,0.03611996,2580.6,2580.2,0.00362467]
[1646784434623,0.03611996,2580.6,2580.4,1.01508426]
[1646784434822,0.03611996,2580.6,2580.5,3.5]
[1646784436022,0.03611996,2580.6,2580.4,1.01508426]
[1646784436222,0.03611996,2580.6,2580.5,3.5]
[1646784436422,0.03611996,2580.6,2580.4,1.01870604]
[1646784436822,0.03611996,2580.6,2580.5,3.5]
[1646784437022,0.03611996,2580.6,2580.4,1.01870604]
[1646784437277,0.03611996,2580.6,2580.5,3.5]
[1646784437476,0.03611996,2580.6,2580.4,1.01870604]
[1646784438377,0.03611996,2580.6,2580.4,1.01508426]
[1646784438575,0.03611996,2580.6,2580.4,1.01870623]
[1646784438777,0.94037506,2581.1,2580.4,1.01870623]
[1646784438977,0.94037506,2581.1,2580.8,1.21583764]
[1646784439179,0.94037506,2581.2,2580.8,1.21583764]
[1646784440179,1.24037506,2581.2,2580.8,1.21583764]
[1646784440681,1.24037506,2581.2,2580.4,0.00362219]
[1646784440931,1.24037506,2581.2,2580.3,3.5]
[1646784441121,1.24037506,2581.2,2580.4,0.00362219]
[1646784441922,1.24037506,2581.2,2580.5,1.21323816]
[1646784442528,0.94037506,2581.1,2580.5,1.21323816]
[1646784443428,0.3,2581.2,2580.5,1.21323816]
[1646784443429,0.94037506,2581.3,2580.6,3.5]
[1646784443629,0.94037506,2581.3,2580.7,0.465]
[1646784443828,0.00362066,2581.4,2580.7,0.465]
[1646784443829,0.94399572,2581.4,2580.8,3.5]
[1646784444233,0.00362066,2581.4,2580.8,3.5]
[1646784444428,0.94037506,2581.5,2580.8,3.5]
[1646784444678,0.00362085,2581.4,2581.3,1.10976825]
[1646784445281,0.00362085,2581.4,2581.3,4.60976825]
[1646784445478,0.00362085,2581.4,2581.3,1.10976825]
[1646784445677,0.94037506,2581.6,2581.3,4.60976825]
[1646784445879,0.00362096,2581.5,2581.3,4.60976825]
[1646784446679,0.00362096,2581.5,2581.3,1.10976825]
[1646784446883,0.94037506,2581.7,2581.3,4.60976825]
[1646784447080,0.00362092,2581.5,2581.3,4.60976825]
[1646784447283,0.00362092,2581.5,2581.3,1.10891786]
[1646784447484,0.00362092,2581.5,2581.3,4.60891786]
[1646784447684,0.00362092,2581.5,2581.4,3.5]
[1646784447883,0.00362092,2581.5,2581.4,4.058]
[1646784448084,0.94037506,2581.9,2581.4,0.558]
[1646784448284,0.94037506,2581.9,2581.4,4.058]
[1646784448526,0.00362092,2581.5,2581.4,0.558]
[1646784448727,0.00362092,2581.5,2581.3,1.10891786]
[1646784448925,0.00362092,2581.5,2581.4,3.5]
[1646784449125,0.00362092,2581.5,2581.3,1.10891786]
[1646784449326,0.95485656,2581.9,2581.8,1.0221425]
[1646784449327,0.94037506,2581.9,2581.8,1.0221425]
[1646784449530,0.95485648,2581.9,2581.8,1.0221425]
[1646784450225,0.95485648,2581.9,2581.2,1.0]
[1646784450426,0.94037506,2581.9,2581.2,1.0]
[1646784450628,0.94037506,2581.8,2581.1,0.558]
[1646784451027,0.94037506,2581.8,2581.6,0.86992806]
[1646784451227,0.94037506,2581.9,2581.2,3.5]
[1646784451427,0.00362056,2582.0,2581.1,0.558]
[1646784451428,0.94037506,2581.8,2581.1,0.558]
[1646784452175,0.00362079,2581.7,2581.1,0.558]
[1646784452379,0.00362079,2581.7,2581.4,0.90094798]
[1646784452776,0.94037506,2581.9,2581.4,0.90094798]
[1646784452975,1.35150082,2582.2,2581.4,0.90094798]
[1646784452976,0.94037506,2582.0,2581.4,0.90094798]
[1646784453176,0.00362078,2581.7,2581.4,0.90094798]
[1646784454079,0.03667553,2581.9,2581.4,0.90094798]
[1646784454277,0.97705059,2581.9,2581.1,0.558]
[1646784454478,0.00362078,2581.7,2581.1,0.558]
[1646784455379,0.0017088,2581.5,2581.1,1.68358481]
[1646784456426,1.20167605,2581.6,2581.1,1.68358481]
[1646784456623,0.0035426,2581.4,2581.1,1.68358481]
[1646784457628,0.97705059,2581.9,2581.1,1.68358481]
[1646784458029,0.00354257,2581.4,2580.8,2.1763]
[1646784458228,0.00354257,2581.4,2580.6,2.9157]
[1646784458427,0.00354257,2581.4,2580.4,1.52744392]
[1646784458927,0.94037506,2581.4,2580.4,1.5239]
[1646784459129,1.22886974,2581.0,2580.4,1.5274437]
[1646784459332,1.22886974,2581.0,2580.4,0.0035437]
[1646784459530,1.52886974,2581.0,2580.4,0.0035437]
[1646784459978,1.52886974,2581.0,2580.3,0.89282615]
[1646784460381,1.52886974,2581.0,2580.4,0.00362885]
[1646784461181,2.49824044,2581.0,2580.4,0.00362885]
[1646784461381,2.49824044,2581.0,2580.0,0.1937]
[1646784461382,3.5,2580.9,2580.0,0.1937]
[1646784461581,3.67259723,2580.9,2580.0,0.1937]
[1646784461982,16.46297229,2580.9,2580.0,0.1937]
[1646784462180,12.8194721,2580.8,2579.9,7.36]
[1646784462389,11.85,2580.6,2579.9,7.36]
[1646784462586,4.46972,2580.5,2579.9,7.36]
[1646784462785,4.46972,2580.5,2580.3,0.00362886]
[1646784462786,5.46972,2580.5,2580.3,0.00362886]
[1646784462986,4.38625045,2580.4,2580.3,0.00362886]
[1646784463435,0.88625045,2580.4,2580.3,0.00362886]
[1646784463625,0.88625045,2580.4,2579.9,7.36]
[1646784463824,0.88625045,2580.4,2580.2,0.0035207]
[1646784464426,0.94037506,2581.0,2580.2,0.0035207]
[1646784464626,0.94037506,2580.9,2580.2,0.0035207]
[1646784464929,0.94037506,2581.0,2579.9,1.12540725]
[1646784465128,0.94037506,2581.0,2580.4,0.00352054]
[1646784465326,3.84931596,2581.1,2580.4,0.00352054]
[1646784465528,1.02993319,2580.8,2580.4,0.00352054]
[1646784465926,1.32993319,2580.8,2580.4,0.00352054]
[1646784466126,1.32993319,2580.8,2580.0,3.5]
[1646784466327,1.32993319,2580.8,2580.4,0.00352054]
[1646784466529,19.46250915,2580.7,2580.4,0.00352054]
[1646784466728,0.3,2580.6,2580.4,0.00214219]
[1646784466929,1.82363491,2580.6,2580.4,0.00214219]
[1646784467177,1.35150082,2580.5,2580.4,0.00214219]
[1646784467379,1.35150082,2580.5,2579.4,0.01559268]
[1646784467380,0.9697106,2580.2,2579.4,0.01559268]
[1646784467586,3.18318046,2580.2,2579.4,0.01559268]
[1646784467780,0.94364986,2580.1,2579.4,0.01559268]
[1646784467980,1.24364986,2580.1,2579.4,0.01559268]
[1646784468379,1.9397544,2580.0,2579.4,0.01559268]
[1646784468581,15.81992,2579.9,2579.4,0.01559268]
[1646784468781,15.81992,2579.9,2578.0,7.748]
[1646784468782,0.9700479,2579.3,2577.9,0.8873]
[1646784468982,13.86215717,2579.6,2577.9,0.8873]
[1646784468983,13.86215717,2579.6,2578.0,1.58573273]
[1646784468984,3.8,2579.2,2578.0,1.58573273]
[1646784469181,15.65,2579.2,2578.0,1.58573273]
[1646784469379,4.8,2579.2,2578.0,1.58573273]
[1646784469780,0.98247542,2578.6,2578.0,1.58573273]
[1646784469980,4.8,2579.2,2578.0,1.58573273]
[1646784469981,2.910725,2578.9,2578.0,1.58573273]
[1646784470183,0.3,2579.2,2578.0,1.58573273]
[1646784470382,0.3,2578.8,2578.0,1.58573273]
[1646784470586,0.3,2579.2,2578.0,1.58573273]
[1646784470780,4.5,2579.3,2578.0,1.58573273]
[1646784470781,3.8,2579.3,2578.0,1.58573273]
[1646784471028,1.02329811,2579.1,2578.5,1.0579486]
[1646784471227,0.3,2579.1,2578.5,1.0579486]
[1646784471429,0.3,2579.3,2578.5,1.0579486]
[1646784471828,3.5,2579.5,2578.5,1.0579486]
[1646784472028,3.5,2579.5,2578.0,0.388]
[1646784472029,3.8,2579.5,2578.0,0.388]
[1646784472235,3.8,2579.5,2578.1,1.58571023]
[1646784472236,0.9700376,2579.2,2578.1,1.58571023]
[1646784472436,0.9700376,2579.2,2578.8,0.00394169]
[1646784472633,1.2700376,2579.2,2578.8,0.00394169]
[1646784473034,0.3,2579.2,2578.8,0.00394169]
[1646784473234,3.5,2579.5,2578.5,0.93764424]
[1646784473235,1.02471631,2579.1,2578.5,0.93764424]
[1646784473635,1.32471631,2579.1,2578.9,0.00394161]
[1646784474434,1.32471631,2579.1,2578.5,0.93764424]
[1646784474688,1.32471631,2579.1,2578.9,0.00394161]
[1646784474888,0.3,2579.1,2578.9,0.00394161]
[1646784475289,4.4699256,2579.5,2578.9,0.00394161]
[1646784475493,0.9699256,2579.5,2578.9,0.00394161]
[1646784475789,0.3,2579.4,2578.5,0.93764424]
[1646784475991,1.33348347,2579.4,2578.9,0.00394161]
[1646784476890,1.33348347,2579.4,2578.5,0.93764424]
[1646784477090,1.33348347,2579.4,2579.0,0.00394148]
[1646784477894,1.03348347,2579.4,2579.0,0.00394148]
[1646784478097,0.9698263,2579.7,2578.9,1.07259756]
[1646784478294,0.9698263,2579.7,2579.1,0.00394143]
[1646784479129,0.3,2579.6,2579.1,0.00394143]
[1646784479330,2.2399144,2579.6,2578.4,9.0218]
[1646784479530,2.2399144,2579.6,2579.3,0.00382303]
[1646784479531,5.7399144,2579.6,2579.3,0.00382303]
[1646784479731,6.7399144,2579.6,2579.3,0.00382303]
[1646784479931,1.17625386,2579.5,2579.3,0.00382303]
[1646784480133,17.8484,2579.4,2579.3,2.303e-05]
[1646784480331,19.48447889,2579.4,2579.3,2.303e-05]
[1646784480533,0.9702998,2579.0,2577.9,7.86]
[1646784480735,5.02832,2578.9,2577.9,7.86]
[1646784480932,5.02832,2578.9,2577.9,8.87625051]
[1646784480933,0.99293005,2578.5,2577.9,8.87625051]
[1646784481532,1.29293005,2578.5,2577.9,8.87625051]
[1646784481932,0.3,2578.5,2577.9,8.37625051]
[1646784482177,9.2980992,2579.2,2577.9,8.37625051]
[1646784482380,2.8872,2579.2,2577.9,8.37625051]
[1646784482579,3.1872,2579.2,2577.9,8.37625051]
[1646784483182,1.21650266,2579.0,2578.4,0.88691758]
[1646784483581,1.51650266,2579.0,2578.4,0.88691758]
[1646784483781,0.47948896,2579.7,2578.4,0.88691758]
[1646784483782,1.9399619,2579.6,2578.4,0.88691758]
[1646784483983,1.9399619,2579.6,2578.5,7.36]
[1646784483984,0.969919,2579.6,2578.5,7.36]
[1646784484182,1.269919,2579.6,2578.5,7.36]
[1646784484383,1.269919,2579.6,2578.9,0.00394161]
[1646784485284,1.2338769,2579.3,2578.9,0.00394161]
[1646784485582,1.2338769,2579.3,2579.1,0.00394139]
[1646784485782,1.5338769,2579.3,2579.1,0.00394139]
[1646784486726,1.5338769,2579.3,2578.5,7.36]
[1646784486927,1.5338769,2579.3,2579.1,0.00394143]
[1646784487831,1.5338769,2579.3,2578.5,7.36]
[1646784488030,1.5338769,2579.3,2579.1,0.00380841]
[1646784489031,1.5338769,2579.3,2578.8,1.01144564]
[1646784489232,0.3,2579.3,2579.1,0.00380841]
[1646784489675,0.969919,2579.6,2579.1,0.00380841]
[1646784489877,0.17164045,2579.8,2579.1,0.00380841]
[1646784490076,0.96983,2580.3,2578.8,1.01144564]
[1646784490077,5.2462,2580.1,2578.8,1.39944564]
[1646784490376,5.2462,2580.1,2579.6,1.0063678]
[1646784490676,1.26050138,2580.3,2579.6,1.0063678]
[1646784490677,1.08886093,2580.3,2579.6,1.0063678]
[1646784490876,0.00380633,2580.5,2579.6,1.0063678]
[1646784491477,2.4282,2580.9,2579.6,1.3943678]
[1646784491679,0.0037014,2580.5,2579.6,1.3943678]
[1646784491881,0.0037014,2580.5,2579.8,0.388]
[1646784492082,0.0037014,2580.5,2579.9,0.558]
[1646784492281,0.0037014,2580.5,2580.0,0.388]
[1646784492481,0.0037014,2580.5,2580.0,0.946]
[1646784492681,2.9604,2581.2,2580.0,0.946]
[1646784492981,0.01480363,2581.0,2580.9,0.97335782]
[1646784493183,0.01480363,2581.0,2580.1,1.899]
[1646784493628,0.01480363,2581.0,2580.3,0.388]
[1646784493832,5.2664,2581.7,2580.3,0.388]
[1646784494031,0.00370155,2580.7,2580.3,0.388]
[1646784494429,0.00370155,2580.7,2580.3,0.688]
[1646784494929,5.2664,2581.7,2580.5,0.388]
[1646784495129,2.9642,2581.7,2580.5,0.388]
[1646784495329,0.00362072,2580.6,2580.5,0.388]
[1646784495731,0.01448071,2581.0,2580.6,0.00428364]
[1646784496132,3.3519,2581.7,2580.6,0.00428364]
[1646784496335,2.9642,2581.7,2580.6,0.00428364]
[1646784496535,2.9642,2581.7,2580.6,0.39228364]
[1646784496734,0.3,2582.1,2581.4,1.23401719]
[1646784497179,1.41625031,2582.3,2581.4,1.23401719]
[1646784497383,0.47164045,2582.3,2581.4,1.23401719]
[1646784497584,0.47164045,2582.3,2580.8,0.946]
[1646784497785,3.8,2582.2,2580.8,0.558]
[1646784498187,4.91531501,2582.2,2580.8,0.558]
[1646784498584,4.91531501,2582.2,2580.7,4.699]
[1646784498785,0.00393905,2581.6,2581.3,1.18129958]
[1646784499987,0.00393909,2581.6,2580.7,4.699]
[1646784500186,0.00393909,2581.6,2580.7,2.2443]
[1646784500486,0.00393909,2581.6,2580.7,1.2443]
[1646784500936,1.0826992,2581.6,2580.9,1.06254873]
[1646784501426,0.00393935,2581.3,2580.9,1.06254873]
[1646784502231,1.0826992,2581.6,2580.9,1.06254873]
[1646784502232,2.0518424,2581.6,2580.9,1.06254873]
[1646784502429,0.00393939,2581.2,2580.9,1.06254873]
[1646784503331,1.0826992,2581.6,2580.9,1.06254873]
[1646784503732,0.00386557,2581.2,2580.9,1.06254873]
[1646784504533,1.0826992,2581.6,2580.9,1.06254873]
[1646784504776,0.00171021,2581.2,2580.7,1.2443]
[1646784504977,0.00171021,2581.2,2580.6,0.30428364]